fUST/lending_fUST_20250520
["ID","MTS","AMOUNT","RATE_DAILY","PERIOD"]
[361697940,1747699852461,-430.0,0.00018356,2]
[361697941,1747699852471,-430.0,0.00018356,2]
[361697942,1747699852480,-430.0,0.00018356,2]
[361697943,1747699852490,-400.0,0.00018356,2]
[361697944,1747699852499,-430.0,0.00018356,2]
[361697945,1747699852509,-430.0,0.00018356,2]
[361697946,1747699852519,-430.0,0.00018356,2]
[361697947,1747699852529,-1323.84,0.00018356,2]
[361697948,1747699852538,-557.52,0.00018356,2]
[361697949,1747699852548,-430.0,0.00018356,2]
[361697950,1747699852558,-304.07909566,0.00018356,2]
[361697951,1747699852567,-450.0,0.00018356,2]
[361697952,1747699852578,-400.0,0.00018356,2]
[361697953,1747699852587,-430.0,0.00018356,2]
[361697954,1747699852597,-430.0,0.00018356,2]
[361697955,1747699852606,-430.0,0.00018356,2]
[361697956,1747699852615,-430.0,0.00018356,2]
[361697957,1747699852625,-682.46,0.00018356,2]
[361697958,1747699852635,-1840.89,0.00018356,2]
[361697959,1747699852644,-430.0,0.00018356,2]
[361697960,1747699852654,-430.0,0.00018356,2]
[361697961,1747699852663,-152.0,0.00018389,2]
[361697962,1747699852673,-151.0,0.00018461,2]
[361697963,1747699852683,-151.0,0.00018461,2]
[361697964,1747699852692,-151.0,0.00018461,2]
[361697965,1747699852701,-1119.800653,0.00018461,2]
[361697966,1747699852711,-151.0,0.00018461,2]
[361697967,1747699852720,-151.0,0.00018461,2]
[361697968,1747699852730,-151.0,0.00018461,2]
[361697969,1747699852739,-195.271522,0.00018461,2]
[361697970,1747699852749,-151.0,0.0001853,2]
[361697971,1747699852758,-151.0,0.0001853,2]
[361697972,1747699852767,-151.0,0.0001853,2]
[361697973,1747699852777,-229.656185,0.0001853,2]
[361697974,1747699852787,-229.656185,0.0001853,2]
[361697975,1747699852797,-151.0,0.0001853,2]
[361697976,1747699852806,-151.0,0.0001853,2]
[361697977,1747699852815,-805.12910025,0.000186,2]
[361697978,1747699852826,-538.35128627,0.00018629,2]
[361697979,1747699852835,-151.0,0.0001863,2]
[361697980,1747699852845,-151.0,0.0001863,2]
[361697981,1747699852854,-151.0,0.0001863,2]
[361697982,1747699852864,-151.0,0.0001863,2]
[361697983,1747699852873,-430.0,0.0001863,2]
[361697984,1747699852883,-151.0,0.0001863,2]
[361697985,1747699852892,-430.0,0.0001863,2]
[361697986,1747699852902,-151.0,0.0001863,2]
[361697987,1747699852911,-151.0,0.0001863,2]
[361697988,1747699852921,-198.266312,0.0001863,2]
[361697989,1747699852930,-930.21941,0.0001863,2]
[361697990,1747699852940,-930.21941,0.0001863,2]
[361697991,1747699852950,-430.0,0.0001863,2]
[361697992,1747699852960,-470.0,0.0001863,2]
[361697993,1747699852970,-430.0,0.0001863,2]
[361697994,1747699852979,-589.4,0.0001863,2]
[361697995,1747699852988,-430.0,0.0001863,2]
[361697996,1747699852998,-430.0,0.0001863,2]
[361697997,1747699853008,-157.161347,0.0001863,2]
[361697998,1747699853017,-370.0,0.0001863,2]
[361697999,1747699853027,-430.0,0.0001863,2]
[361698000,1747699853036,-430.0,0.0001863,2]
[361698001,1747699853046,-430.0,0.0001863,2]
[361698002,1747699853056,-170.92366137,0.0001863,2]
[361698003,1747699853066,-470.0,0.0001863,2]
[361698004,1747699853076,-470.0,0.0001863,2]
[361698005,1747699853086,-470.0,0.0001863,2]
[361698006,1747699853096,-430.0,0.0001863,2]
[361698007,1747699853106,-430.0,0.0001863,2]
[361698008,1747699853116,-430.0,0.0001863,2]
[361698009,1747699853126,-430.0,0.0001863,2]
[361698010,1747699853136,-151.0,0.0001863,2]
[361698011,1747699853146,-430.0,0.0001863,2]
[361698012,1747699853156,-430.0,0.0001863,2]
[361698013,1747699853166,-430.0,0.0001863,2]
[361698014,1747699853176,-817.21,0.0001863,2]
[361698015,1747699853185,-151.0,0.0001863,2]
[361698016,1747699853195,-370.0,0.0001863,2]
[361698017,1747699853205,-1119.800653,0.0001863,2]
[361698018,1747699853215,-1119.800653,0.0001863,2]
[361698019,1747699853225,-679.34,0.0001863,2]
[361698020,1747699853234,-430.0,0.0001863,2]
[361698021,1747699853244,-430.0,0.0001863,2]
[361698022,1747699853253,-806.0,0.0001863,2]
[361698023,1747699853262,-636.73,0.0001863,2]
[361698024,1747699853271,-430.0,0.0001863,2]
[361698025,1747699853281,-331.61587039,0.0001863,2]
[361698026,1747699853290,-807.95,0.0001863,2]
[361698027,1747699853300,-151.0,0.0001863,2]
[361698028,1747699853309,-151.0,0.0001863,2]
[361698029,1747699853319,-817.17,0.0001863,2]
[361698030,1747699853328,-151.0,0.0001863,2]
[361698031,1747699853337,-151.0,0.0001863,2]
[361698032,1747699853346,-151.0,0.0001863,2]
[361698033,1747699853358,-151.0,0.0001863,2]
[361698034,1747699853368,-151.0,0.0001863,2]
[361698035,1747699853377,-184.39535,0.0001863,2]
[361698036,1747699853386,-430.0,0.0001863,2]
[361698037,1747699853396,-430.0,0.0001863,2]
[361698038,1747699853406,-416.64843461,0.0001863,2]
[361698039,1747699853415,-151.0,0.0001863,2]
[361698040,1747699853425,-151.0,0.0001863,2]
[361698041,1747699853437,-740.92,0.0001863,2]
[361698042,1747699853447,-151.0,0.0001863,2]
[361698043,1747699853456,-583.45,0.0001863,2]
[361698044,1747699853466,-536.79,0.0001863,2]
[361698045,1747699853476,-151.0,0.0001863,2]
[361698046,1747699853485,-220.0,0.0001863,2]
[361698047,1747699853495,-440.38,0.0001863,2]
[361698048,1747699853504,-151.96402328,0.0001863,2]
[361698049,1747699853523,-430.0,0.0001863,2]
[361698050,1747699853533,-463.75,0.0001863,2]
[361698051,1747699853542,-728.62,0.0001863,2]
[361698052,1747699853552,-430.0,0.0001863,2]
[361698053,1747699853561,-430.0,0.0001863,2]
[361698054,1747699853570,-430.0,0.0001863,2]
[361698055,1747699853580,-853.49,0.0001863,2]
[361698056,1747699853589,-430.0,0.0001863,2]
[361698057,1747699853598,-430.0,0.0001863,2]
[361698058,1747699853607,-430.0,0.0001863,2]
[361698059,1747699853617,-430.0,0.0001863,2]
[361698060,1747699853627,-430.0,0.0001863,2]
[361698061,1747699853637,-276.80548335,0.0001863,2]
[361698062,1747699853646,-430.0,0.0001863,2]
[361698063,1747699853656,-151.0,0.0001863,2]
[361698064,1747699853665,-151.0,0.0001863,2]
[361698065,1747699853675,-151.449414,0.0001863,2]
[361698066,1747699853683,-621.8,0.0001863,2]
[361698067,1747699853693,-430.0,0.0001863,2]
[361698068,1747699853702,-430.0,0.0001863,2]
[361698069,1747699853712,-520.01,0.0001863,2]
[361698070,1747699853722,-430.0,0.0001863,2]
[361698071,1747699853731,-430.0,0.0001863,2]
[361698072,1747699853740,-430.0,0.0001863,2]
[361698073,1747699853750,-501.718423,0.0001863,2]
[361698074,1747699853760,-501.718423,0.0001863,2]
[361698075,1747699853770,-501.718423,0.0001863,2]
[361698076,1747699853780,-430.0,0.0001863,2]
[361698077,1747699853790,-501.718423,0.0001863,2]
[361698078,1747699853799,-501.718423,0.0001863,2]
[361698079,1747699853809,-501.718423,0.0001863,2]
[361698080,1747699853818,-430.0,0.0001863,2]
[361698081,1747699853832,-430.0,0.0001863,2]
[361698082,1747699853841,-726.74,0.0001863,2]
[361698083,1747699853851,-430.0,0.0001863,2]
[361698084,1747699853860,-430.0,0.0001863,2]
[361698085,1747699853869,-365.0,0.0001863,2]
[361698086,1747699853879,-492.85651514,0.0001863,2]
[361698087,1747699853889,-370.0,0.0001863,2]
[361698088,1747699853900,-430.0,0.0001863,2]
[361698089,1747699853910,-430.0,0.0001863,2]
[361698090,1747699853921,-430.0,0.0001863,2]
[361698091,1747699853931,-430.0,0.0001863,2]
[361698092,1747699853941,-430.0,0.0001863,2]
[361698093,1747699853951,-549.01,0.0001863,2]
[361698094,1747699853961,-430.0,0.0001863,2]
[361698095,1747699853970,-430.0,0.0001863,2]
[361698096,1747699853980,-430.0,0.0001863,2]
[361698097,1747699853990,-430.0,0.0001863,2]
[361698098,1747699854000,-458.52,0.0001863,2]
[361698099,1747699854009,-430.0,0.0001863,2]
[361698100,1747699854019,-430.0,0.0001863,2]
[361698101,1747699854028,-430.0,0.0001863,2]
[361698102,1747699854038,-897.27,0.0001863,2]
[361698103,1747699854047,-430.0,0.0001863,2]
[361698104,1747699854057,-151.0,0.0001863,2]
[361698105,1747699854066,-151.0,0.0001863,2]
[361698106,1747699854077,-151.0,0.0001863,2]
[361698107,1747699854087,-430.0,0.0001863,2]
[361698108,1747699854096,-430.0,0.0001863,2]
[361698109,1747699854105,-430.0,0.0001863,2]
[361698110,1747699854115,-430.0,0.0001863,2]
[361698111,1747699854124,-151.0,0.0001863,2]
[361698112,1747699854134,-430.0,0.0001863,2]
[361698113,1747699854143,-420.0,0.0001863,2]
[361698114,1747699854154,-430.0,0.0001863,2]
[361698115,1747699854163,-151.0,0.0001863,2]
[361698116,1747699854173,-430.0,0.0001863,2]
[361698117,1747699854182,-566.55,0.0001863,2]
[361698118,1747699854192,-430.0,0.0001863,2]
[361698119,1747699854202,-151.0,0.0001863,2]
[361698120,1747699854211,-430.0,0.0001863,2]
[361698121,1747699854220,-430.0,0.0001863,2]
[361698122,1747699854230,-568.34,0.0001863,2]
[361698123,1747699854239,-430.0,0.0001863,2]
[361698124,1747699854248,-477.0310527,0.0001863,2]
[361698125,1747699854258,-430.0,0.0001863,2]
[361698126,1747699854267,-430.0,0.0001863,2]
[361698127,1747699854276,-430.0,0.0001863,2]
[361698128,1747699854285,-430.0,0.0001863,2]
[361698129,1747699854294,-430.0,0.0001863,2]
[361698130,1747699854304,-420.0,0.0001863,2]
[361698131,1747699854313,-430.0,0.0001863,2]
[361698132,1747699854323,-151.0,0.0001863,2]
[361698133,1747699854333,-151.0,0.0001863,2]
[361698134,1747699854343,-880.33,0.0001863,2]
[361698135,1747699854353,-151.0,0.0001863,2]
[361698136,1747699854365,-151.0,0.0001863,2]
[361698137,1747699854375,-430.0,0.0001863,2]
[361698138,1747699854384,-430.0,0.0001863,2]
[361698139,1747699854393,-151.0,0.0001863,2]
[361698140,1747699854405,-151.0,0.0001863,2]
[361698141,1747699854414,-430.0,0.0001863,2]
[361698142,1747699854424,-430.0,0.0001863,2]
[361698143,1747699854435,-430.0,0.0001863,2]
[361698144,1747699854445,-430.0,0.0001863,2]
[361698145,1747699854455,-430.0,0.0001863,2]
[361698146,1747699854464,-430.0,0.0001863,2]
[361698147,1747699854474,-430.0,0.0001863,2]
[361698148,1747699854484,-783.88,0.0001863,2]
[361698149,1747699854494,-430.0,0.0001863,2]
[361698150,1747699854503,-430.0,0.0001863,2]
[361698151,1747699854512,-430.0,0.0001863,2]
[361698152,1747699854521,-430.0,0.0001863,2]
[361698153,1747699854531,-430.0,0.0001863,2]
[361698154,1747699854541,-430.0,0.0001863,2]
[361698155,1747699854550,-512.06121369,0.0001863,2]
[361698156,1747699854560,-576.34,0.0001863,2]
[361698157,1747699854695,-430.0,0.0001863,2]
[361698158,1747699854706,-430.0,0.0001863,2]
[361698159,1747699854717,-430.0,0.0001863,2]
[361698160,1747699854727,-676.17,0.0001863,2]
[361698161,1747699854737,-430.0,0.0001863,2]
[361698162,1747699854748,-430.0,0.0001863,2]
[361698163,1747699854758,-151.0,0.0001863,2]
[361698164,1747699854769,-151.0,0.0001863,2]
[361698165,1747699854778,-151.0,0.0001863,2]
[361698166,1747699854787,-440.59,0.0001863,2]
[361698167,1747699854797,-470.8064467,0.0001863,2]
[361698168,1747699854807,-430.0,0.0001863,2]
[361698169,1747699854817,-430.0,0.0001863,2]
[361698170,1747699854827,-430.0,0.0001863,2]
[361698171,1747699854837,-430.0,0.0001863,2]
[361698172,1747699854847,-430.0,0.0001863,2]
[361698173,1747699854857,-430.0,0.0001863,2]
[361698174,1747699854867,-430.0,0.0001863,2]
[361698175,1747699854877,-430.0,0.0001863,2]
[361698176,1747699854887,-430.0,0.0001863,2]
[361698177,1747699854897,-486.03,0.0001863,2]
[361698178,1747699854907,-430.0,0.0001863,2]
[361698179,1747699854917,-229.656185,0.0001863,2]
[361698180,1747699854926,-229.656185,0.0001863,2]
[361698181,1747699854936,-229.656185,0.0001863,2]
[361698182,1747699854946,-430.0,0.0001863,2]
[361698183,1747699854955,-229.656185,0.0001863,2]
[361698184,1747699854964,-430.0,0.0001863,2]
[361698185,1747699854973,-430.0,0.0001863,2]
[361698186,1747699854982,-430.0,0.0001863,2]
[361698187,1747699854991,-430.0,0.0001863,2]
[361698188,1747699855001,-204.09729973,0.0001863,2]
[361698189,1747699855010,-430.0,0.0001863,2]
[361698190,1747699855019,-442.57,0.0001863,2]
[361698191,1747699855028,-151.0,0.0001863,2]
[361698192,1747699855038,-151.0,0.0001863,2]
[361698193,1747699855047,-151.0,0.0001863,2]
[361698194,1747699855056,-813.64,0.0001863,2]
[361698195,1747699855065,-430.0,0.0001863,2]
[361698196,1747699855073,-151.0,0.0001863,2]
[361698197,1747699855083,-151.0,0.0001863,2]
[361698198,1747699855094,-430.0,0.0001863,2]
[361698199,1747699855105,-430.0,0.0001863,2]
[361698200,1747699855114,-430.0,0.0001863,2]
[361698201,1747699855123,-430.0,0.0001863,2]
[361698202,1747699855132,-430.0,0.0001863,2]
[361698203,1747699855141,-556.68,0.0001863,2]
[361698204,1747699855150,-430.0,0.0001863,2]
[361698205,1747699855159,-151.0,0.0001863,2]
[361698206,1747699855168,-151.0,0.0001863,2]
[361698207,1747699855177,-151.0,0.0001863,2]
[361698208,1747699855187,-430.0,0.0001863,2]
[361698209,1747699855196,-494.55,0.0001863,2]
[361698210,1747699855204,-943.97,0.0001863,2]
[361698211,1747699855213,-430.0,0.0001863,2]
[361698212,1747699855222,-430.0,0.0001863,2]
[361698213,1747699855231,-430.0,0.0001863,2]
[361698214,1747699855240,-430.0,0.0001863,2]
[361698215,1747699855249,-430.0,0.0001863,2]
[361698216,1747699855258,-430.0,0.0001863,2]
[361698217,1747699855267,-1392.49,0.0001863,2]
[361698218,1747699855278,-430.0,0.0001863,2]
[361698219,1747699855287,-611.92,0.0001863,2]
[361698220,1747699855296,-430.0,0.0001863,2]
[361698221,1747699855305,-1509.25,0.0001863,2]
[361698222,1747699855314,-430.0,0.0001863,2]
[361698223,1747699855323,-430.0,0.0001863,2]
[361698224,1747699855332,-772.44,0.0001863,2]
[361698225,1747699855341,-735.3,0.0001863,2]
[361698226,1747699855350,-430.0,0.0001863,2]
[361698227,1747699855361,-430.0,0.0001863,2]
[361698228,1747699855370,-430.0,0.0001863,2]
[361698229,1747699855379,-430.0,0.0001863,2]
[361698230,1747699855387,-430.0,0.0001863,2]
[361698231,1747699855396,-400.0,0.0001863,2]
[361698232,1747699855406,-4199.13,0.0001863,2]
[361698233,1747699855415,-574.66,0.0001863,2]
[361698234,1747699855424,-430.0,0.0001863,2]
[361698235,1747699855433,-430.0,0.0001863,2]
[361698236,1747699855443,-890.86,0.0001863,2]
[361698237,1747699855454,-430.0,0.0001863,2]
[361698238,1747699855463,-430.0,0.0001863,2]
[361698239,1747699855471,-1420.43,0.0001863,2]
[361698240,1747699855483,-430.0,0.0001863,2]
[361698241,1747699855491,-430.0,0.0001863,2]
[361698242,1747699855500,-1430.04,0.0001863,2]
[361698243,1747699855509,-522.59,0.0001863,2]
[361698244,1747699855519,-430.0,0.0001863,2]
[361698245,1747699855528,-1054.15,0.0001863,2]
[361698246,1747699855537,-430.0,0.0001863,2]
[361698247,1747699855546,-2666.85,0.0001863,2]
[361698248,1747699855555,-1866.06,0.0001863,2]
[361698249,1747699855564,-1387.59,0.0001863,2]
[361698250,1747699855574,-1629.43,0.0001863,2]
[361698251,1747699855582,-430.0,0.0001863,2]
[361698252,1747699855591,-430.0,0.0001863,2]
[361698253,1747699855600,-151.0,0.0001863,2]
[361698254,1747699855609,-151.0,0.0001863,2]
[361698255,1747699855618,-151.0,0.0001863,2]
[361698256,1747699855627,-151.0,0.0001863,2]
[361698257,1747699855636,-430.0,0.0001863,2]
[361698258,1747699855644,-401.9604569,0.0001863,2]
[361698259,1747699855653,-539.02,0.0001863,2]
[361698260,1747699855662,-1447.63,0.0001863,2]
[361698261,1747699855672,-430.0,0.0001863,2]
[361698262,1747699855681,-430.0,0.0001863,2]
[361698263,1747699855690,-7695.92,0.0001863,2]
[361698264,1747699855699,-937.28,0.0001863,2]
[361698265,1747699855708,-430.0,0.0001863,2]
[361698266,1747699855717,-430.0,0.0001863,2]
[361698267,1747699855726,-430.0,0.0001863,2]
[361698268,1747699855736,-430.0,0.0001863,2]
[361698269,1747699855745,-679.3,0.0001863,2]
[361698270,1747699855755,-470.0,0.0001863,2]
[361698271,1747699855764,-430.0,0.0001863,2]
[361698272,1747699855773,-430.0,0.0001863,2]
[361698273,1747699855782,-151.0,0.0001863,2]
[361698274,1747699855791,-151.0,0.0001863,2]
[361698275,1747699855801,-470.0,0.0001863,2]
[361698276,1747699855811,-430.0,0.0001863,2]
[361698277,1747699855820,-430.0,0.0001863,2]
[361698278,1747699855830,-1422.82,0.0001863,2]
[361698279,1747699855839,-801.14,0.0001863,2]
[361698280,1747699855848,-430.0,0.0001863,2]
[361698281,1747699855857,-430.0,0.0001863,2]
[361698282,1747699855866,-1231.22,0.0001863,2]
[361698283,1747699855876,-430.0,0.0001863,2]
[361698284,1747699855886,-430.0,0.0001863,2]
[361698285,1747699855896,-2322.95,0.0001863,2]
[361698286,1747699855906,-1905.85,0.0001863,2]
[361698287,1747699855915,-430.0,0.0001863,2]
[361698288,1747699855925,-723.26,0.0001863,2]
[361698289,1747699855934,-912.68,0.0001863,2]
[361698290,1747699855945,-430.0,0.0001863,2]
[361698291,1747699855955,-430.0,0.0001863,2]
[361698292,1747699855964,-741.24,0.0001863,2]
[361698293,1747699855974,-430.0,0.0001863,2]
[361698294,1747699855983,-430.0,0.0001863,2]
[361698295,1747699855992,-430.0,0.0001863,2]
[361698296,1747699856002,-1725.13,0.0001863,2]
[361698297,1747699856011,-433.29,0.0001863,2]
[361698298,1747699856020,-470.0,0.0001863,2]
[361698299,1747699856029,-4345.0,0.0001863,2]
[361698300,1747699856039,-430.0,0.0001863,2]
[361698301,1747699856051,-430.0,0.0001863,2]
[361698302,1747699856060,-430.0,0.0001863,2]
[361698303,1747699856069,-430.0,0.0001863,2]
[361698304,1747699856079,-430.0,0.0001863,2]
[361698305,1747699856088,-430.0,0.0001863,2]
[361698306,1747699856097,-430.0,0.0001863,2]
[361698307,1747699856107,-325.63189709,0.0001863,2]
[361698308,1747699856116,-1497.6,0.0001863,2]
[361698309,1747699856125,-430.0,0.0001863,2]
[361698310,1747699856134,-430.0,0.0001863,2]
[361698311,1747699856143,-430.0,0.0001863,2]
[361698312,1747699856153,-430.0,0.0001863,2]
[361698313,1747699856162,-604.67,0.0001863,2]
[361698314,1747699856171,-430.0,0.0001863,2]
[361698315,1747699856180,-430.0,0.0001863,2]
[361698316,1747699856189,-430.0,0.0001863,2]
[361698317,1747699856199,-430.0,0.0001863,2]
[361698318,1747699856208,-430.0,0.0001863,2]
[361698319,1747699856217,-519.97910546,0.0001863,2]
[361698320,1747699856226,-430.0,0.0001863,2]
[361698321,1747699856236,-440.11,0.0001863,2]
[361698322,1747699856245,-430.0,0.0001863,2]
[361698323,1747699856254,-430.0,0.0001863,2]
[361698324,1747699856263,-430.0,0.0001863,2]
[361698325,1747699856272,-430.0,0.0001863,2]
[361698326,1747699856281,-430.0,0.0001863,2]
[361698327,1747699856290,-775.1,0.0001863,2]
[361698328,1747699856300,-783.74,0.0001863,2]
[361698329,1747699856309,-1518.46,0.0001863,2]
[361698330,1747699856318,-809.831699,0.0001863,2]
[361698331,1747699856328,-430.0,0.0001863,2]
[361698332,1747699856337,-809.831699,0.0001863,2]
[361698333,1747699856346,-809.831699,0.0001863,2]
[361698334,1747699856357,-809.831699,0.0001863,2]
[361698335,1747699856369,-919.0,0.0001863,2]
[361698336,1747699856379,-430.0,0.0001863,2]
[361698337,1747699856388,-1220.71,0.0001863,2]
[361698338,1747699856398,-809.831699,0.0001863,2]
[361698339,1747699856407,-853.76,0.0001863,2]
[361698340,1747699856417,-809.831699,0.0001863,2]
[361698341,1747699856426,-809.831699,0.0001863,2]
[361698342,1747699856435,-809.831699,0.0001863,2]
[361698343,1747699856445,-430.0,0.0001863,2]
[361698344,1747699856455,-430.0,0.0001863,2]
[361698345,1747699856464,-1150.84,0.0001863,2]
[361698346,1747699856482,-430.0,0.0001863,2]
[361698347,1747699856492,-1598.12,0.0001863,2]
[361698348,1747699856501,-5263.19,0.0001863,2]
[361698349,1747699856510,-430.0,0.0001863,2]
[361698350,1747699856519,-850.11,0.0001863,2]
[361698351,1747699856529,-1219.2,0.0001863,2]
[361698352,1747699856538,-1703.12,0.0001863,2]
[361698353,1747699856548,-663.68,0.0001863,2]
[361698354,1747699856558,-430.0,0.0001863,2]
[361698355,1747699856567,-1541.48,0.0001863,2]
[361698356,1747699856577,-1057.32,0.0001863,2]
[361698357,1747699856586,-430.0,0.0001863,2]
[361698358,1747699856596,-430.0,0.0001863,2]
[361698359,1747699856605,-430.0,0.0001863,2]
[361698360,1747699856615,-420.0,0.0001863,2]
[361698361,1747699856624,-151.0,0.0001863,2]
[361698362,1747699856634,-631.36,0.0001863,2]
[361698363,1747699856643,-151.0,0.0001863,2]
[361698364,1747699856652,-151.0,0.0001863,2]
[361698365,1747699856661,-1224.37,0.0001863,2]
[361698366,1747699856670,-1097.57,0.0001863,2]
[361698367,1747699856679,-1208.58,0.0001863,2]
[361698368,1747699856688,-1134.62,0.0001863,2]
[361698369,1747699856698,-2419.07,0.0001863,2]
[361698370,1747699856707,-430.0,0.0001863,2]
[361698371,1747699856716,-430.0,0.0001863,2]
[361698372,1747699856725,-3184.07,0.0001863,2]
[361698373,1747699856734,-430.0,0.0001863,2]
[361698374,1747699856744,-430.0,0.0001863,2]
[361698375,1747699856753,-573.03,0.0001863,2]
[361698376,1747699856763,-430.0,0.0001863,2]
[361698377,1747699856773,-430.0,0.0001863,2]
[361698378,1747699856783,-430.0,0.0001863,2]
[361698379,1747699856793,-430.0,0.0001863,2]
[361698380,1747699856802,-470.0,0.0001863,2]
[361698381,1747699856812,-430.0,0.0001863,2]
[361698382,1747699856821,-568.27,0.0001863,2]
[361698383,1747699856831,-1873.04,0.0001863,2]
[361698384,1747699856841,-2061.1,0.0001863,2]
[361698385,1747699856850,-430.0,0.0001863,2]
[361698386,1747699856860,-993.19,0.0001863,2]
[361698387,1747699856870,-430.0,0.0001863,2]
[361698388,1747699856879,-430.0,0.0001863,2]
[361698389,1747699856888,-430.0,0.0001863,2]
[361698390,1747699856898,-519.38,0.0001863,2]
[361698391,1747699856907,-842.63,0.0001863,2]
[361698392,1747699856916,-529.08,0.0001863,2]
[361698393,1747699856926,-430.0,0.0001863,2]
[361698394,1747699856936,-604.17,0.0001863,2]
[361698395,1747699856945,-151.0,0.0001863,2]
[361698396,1747699856955,-151.0,0.0001863,2]
[361698397,1747699856965,-1735.91,0.0001863,2]
[361698398,1747699856975,-151.0,0.0001863,2]
[361698399,1747699856984,-1365.97,0.0001863,2]
[361698400,1747699856994,-430.0,0.0001863,2]
[361698401,1747699857004,-151.0,0.0001863,2]
[361698402,1747699857014,-547.7,0.0001863,2]
[361698403,1747699857023,-430.0,0.0001863,2]
[361698404,1747699857032,-430.0,0.0001863,2]
[361698405,1747699857042,-430.0,0.0001863,2]
[361698406,1747699857057,-430.0,0.0001863,2]
[361698407,1747699857068,-430.0,0.0001863,2]
[361698408,1747699857078,-430.0,0.0001863,2]
[361698409,1747699857086,-1323.84,0.0001863,2]
[361698410,1747699857095,-430.0,0.0001863,2]
[361698411,1747699857105,-557.52,0.0001863,2]
[361698412,1747699857114,-430.0,0.0001863,2]
[361698413,1747699857123,-430.0,0.0001863,2]
[361698414,1747699857132,-430.0,0.0001863,2]
[361698415,1747699857142,-430.0,0.0001863,2]
[361698416,1747699857153,-682.46,0.0001863,2]
[361698417,1747699857163,-1840.89,0.0001863,2]
[361698418,1747699857173,-430.0,0.0001863,2]
[361698419,1747699857183,-370.58400298,0.0001863,2]
[361698420,1747699857192,-500.0,0.00018673,2]
[361698421,1747699857202,-151.0,0.000188,2]
[361698422,1747699857212,-193.0,0.00018802,2]
[361698423,1747699857221,-151.0,0.000189,2]
[361698424,1747699857230,-1539.1373308,0.000189,2]
[361698425,1747699857240,-151.0,0.00018904,2]
[361698426,1747699857249,-151.0,0.00018904,2]
[361698427,1747699857258,-151.0,0.00018904,2]
[361698428,1747699857271,-151.0,0.00018904,2]
[361698429,1747699857281,-151.0,0.00018904,2]
[361698430,1747699857403,-151.0,0.00018904,2]
[361698431,1747699857414,-151.0,0.00018904,2]
[361698432,1747699857425,-300.0,0.00018904,2]
[361698433,1747699857436,-151.0,0.00018904,2]
[361698434,1747699857446,-151.0,0.00018904,2]
[361698435,1747699857457,-151.0,0.00018904,2]
[361698436,1747699857466,-151.0,0.00018904,2]
[361698437,1747699857476,-151.0,0.00018904,2]
[361698438,1747699857485,-151.0,0.00018904,2]
[361698439,1747699857495,-430.0,0.00018904,2]